[Event "44th Chess Olympiad Women 2022"]
[Site "Chennai"]
[Date "2022.08.08"]
[Round "10.3"]
[White "Muzychuk, Anna"]
[Black "Heinemann, Josefine"]
[Result "1/2-1/2"]
[ECO "C50"]
[WhiteElo "2529"]
[BlackElo "2321"]
[Annotator "TA"]
[PlyCount "151"]
[EventDate "2022.07.29"]
[EventType "team-tourn"]
[EventCountry "IND"]
[SourceTitle "playchess.com"]
[Source "ChessBase"]
[SourceQuality "1"]
[WhiteTeam "Ukraine"]
[BlackTeam "Germany"]
[WhiteTeamCountry "UKR"]
[BlackTeamCountry "GER"]
[TimeControl "40/5400+30:1800+30"]

{[%evp 10,151,17,11,8,12,13,4,29,0,0,-14,0,0,0,0,0,0,12,20,30,22,29,20,41,39,47,35,40,11,106,109,154,154,152,154,153,119,119,118,111,65,65,65,65,68,72,57,83,72,81,75,66,39,52,60,45,39,67,35,48,15,33,15,33,33,33,0,0,0,33,33,37,22,22,11,13,0,16,16,15,5,5,0,15,0,4,0,0,0,19,0,0,0,13,13,13,13,13,13,13,13,13,13,47,0,0,6,13,13,25,13,13,10,25,16,25,23,54,54,54,54,54,54,54,39,39,39,39,0,0,0,0,0,0,0,0,0,0,0,0,0,0,0]} 1. e4 {[%emt 0:00:02]} e5 {[%emt 0:00:06]} 2. Nf3 {[%emt 0:00:06]} Nc6 {[%emt 0:00:05]} 3. Bc4 {[%emt 0:00:10]} Bc5 {[%emt 0:00:15]} 4. d3 {[%emt 0:00:24]} Nf6 {[%emt 0:00:10]} 5. Nc3 {[%emt 0:00:15]} d6 {[%emt 0:00:52]} 6. Na4 {[%emt 0:01:54]} Bb6 {[%emt 0:00:12] C50: Hungarian Defence and Giuoco Pianissimo.} 7. a3 {[%emt 0:00:28]} O-O {[%emt 0:02:53] [#]} 8. c3 $146 {[%emt 0:01:42]} ({Predecessor:} 8. O-O h6 9. Re1 Re8 10. b4 Be6 11. Bxe6 Rxe6 12. c4 Nd4 13. Nxb6 Nxf3+ 14. Qxf3 axb6 {0-1 (86) Abdusattorov,N (2688)-Kovalev,V (2623) Chess.com INT 2022}) 8... Ne7 {[%emt 0:05:58][%cal Ob6f2]} 9. O-O {[%emt 0:01:11]} Ng6 {[%emt 0:01:20]} 10. Re1 {[%emt 0:05:24]} h6 {[%emt 0:05:09][%cal Ob6f2]} (10... Bxf2+ {feels hotter.} 11. Kxf2 c6 12. Bb3 b5) 11. Nxb6 {[%emt 0:04:18]} axb6 {[%emt 0:00:17]} 12. Bb3 {[%emt 0:00:51]} Re8 {[%emt 0:05:28]} 13. h3 {[%emt 0:10:52]} Be6 {[%emt 0:06:43]} 14. Bc2 {[%emt 0:00:39]} Nh7 {[%emt 0:00:19]} 15. d4 {[%emt 0:07:10]} Qf6 {[%emt 0:03:44]} 16. Nh2 {[%emt 0:08:06]} Rad8 {[%emt 0:09:59]} 17. Be3 {[%emt 0:03:06]} Ng5 {[%emt 0:11:01]} 18. a4 {[%emt 0:14:03]} Nf4 {[%emt 0:05:14]} 19. Ng4 {[%emt 0:05:19]} Bxg4 {[%emt 0:04:20]} (19... Qg6 $1 $11 20. Bxf4 exf4) 20. Qxg4 $16 {[%emt 0:01:01]} g6 {[%emt 0:09:43] [#]} 21. h4 $1 {[%emt 0:03:26]} Nh7 {[%emt 0:00:32]} 22. g3 {[%emt 0:03:26]} h5 {[%emt 0:00:33]} 23. Qf3 {[%emt 0:01:10]} Ne6 {[%emt 0:00:20]} 24. Qxf6 {[%emt 0:05:52]} Nxf6 {[%emt 0:00:07]} 25. dxe5 {[%emt 0:02:25]} ({White should try} 25. d5 $16 Nc5 26. Bg5) 25... dxe5 $14 {[%emt 0:00:07]} 26. f3 {[%emt 0:00:12]} Ra8 {[%emt 0:02:37]} 27. Kf2 {[%emt 0:00:42]} Kf8 {[%emt 0:02:19]} 28. Ra3 {[%emt 0:05:38]} Ke7 {[%emt 0:03:42]} 29. Rea1 {[%emt 0:00:07]} Red8 {[%emt 0:00:26]} 30. Ke2 {[%emt 0:01:49]} Ne8 {[%emt 0:02:04]} 31. a5 {[%emt 0:06:01]} Rxa5 {[%emt 0:02:41]} 32. Rxa5 {[%emt 0:00:04]} bxa5 {[%emt 0:00:03]} 33. Rxa5 {[%emt 0:00:08]} f6 {[%emt 0:00:10]} 34. Ra7 {[%emt 0:05:19]} Nd6 {[%emt 0:02:38]} 35. Bb3 {[%emt 0:00:03]} Rb8 {[%emt 0:02:08]} 36. Bd5 {[%emt 0:00:22]} Kd7 {[%emt 0:02:32]} 37. Ra1 {[%emt 0:00:53]} Ke7 {[%emt 0:01:45]} 38. Rg1 {[%emt 0:02:02]} Rh8 {[%emt 0:04:12]} 39. Ra1 {[%emt 0:01:01]} Rb8 {[%emt 0:00:04]} 40. Bb3 {[%emt 0:01:00]} Nf7 {[%emt 0:02:01]} 41. Bc2 {[%emt 0:04:32]} Nd6 {[%emt 0:02:48]} 42. Bd3 {[%emt 0:01:59]} b6 {[%emt 0:04:31]} 43. b4 {[%emt 0:04:26]} Rd8 {[%emt 0:02:22]} 44. Ra7 {[%emt 0:02:20]} Nc8 {[%emt 0:00:42]} 45. Ra2 {[%emt 0:02:24]} Nd6 {[%emt 0:00:04]} 46. Ra1 {[%emt 0:00:17]} Rb8 {[%emt 0:00:40]} 47. Bf2 {[%emt 0:02:57]} Rd8 {[%emt 0:01:25]} 48. Ra7 {[%emt 0:01:49]} Nc8 {[%emt 0:00:13]} 49. Ra8 {[%emt 0:01:02]} Nd6 {[%emt 0:00:48]} 50. Rxd8 {[%emt 0:00:06]} Kxd8 $11 {[%emt 0:00:34][%mdl 4096] Endgame KBB-KNN} 51. Bc2 {[%emt 0:00:18]} Ke7 {[%emt 0:01:55]} 52. Bb3 {[%emt 0:00:13]} Nf8 {[%emt 0:01:24]} 53. Be3 {[%emt 0:01:37]} Ne6 {[%emt 0:00:47]} 54. Bd5 {[%emt 0:01:16]} Kd7 {[%emt 0:03:02]} 55. Kd3 {[%emt 0:01:06]} Nc8 {[%emt 0:03:42]} 56. f4 {[%emt 0:01:45]} Nd6 {[%emt 0:03:51]} 57. fxe5 {[%emt 0:01:41]} (57. c4 $14) 57... fxe5 {[%emt 0:00:05]} 58. Bb3 {[%emt 0:00:26]} Ke7 {[%emt 0:01:12]} 59. Ba4 {[%emt 0:02:11]} Kf6 {[%emt 0:01:21]} 60. Bc6 {[%emt 0:01:12]} Ke7 {[%emt 0:04:09]} 61. c4 {[%emt 0:00:58]} Nf7 {[%emt 0:02:48]} 62. c5 {[%emt 0:06:13]} bxc5 {[%emt 0:00:03]} 63. bxc5 {[%emt 0:00:09]} Nfd8 {[%emt 0:00:22]} 64. Ba4 {[%emt 0:00:12]} c6 {[%emt 0:00:29]} 65. Kc4 {[%emt 0:00:16]} Kd7 {[%emt 0:01:00]} 66. Bd1 {[%emt 0:00:25]} Nb7 {[%emt 0:01:18]} 67. g4 {[%emt 0:00:37]} hxg4 {[%emt 0:00:05]} 68. Bxg4 {[%emt 0:00:03]} Ke7 {[%emt 0:00:28]} 69. Bxe6 {[%emt 0:02:05]} Kxe6 $14 {[%emt 0:00:05] KB-KN. The position is equal.} 70. Bg5 {[%emt 0:00:55]} Kf7 {[%emt 0:00:35]} 71. Kb4 {[%emt 0:00:36]} Ke6 {[%emt 0:00:06]} 72. Bh6 {[%emt 0:00:15]} Kf7 {[%emt 0:00:10]} 73. Kc4 {[%emt 0:00:13]} Na5+ {[%emt 0:00:08]} 74. Kc3 {[%emt 0:00:07]} Nb7 {[%emt 0:00:12]} 75. Kb4 {[%emt 0:00:15]} Kf6 {[%emt 0:00:08]} 76. Bg5+ {[%emt 0:01:46] Weighted Error Value: White=0.08 (flawless) /Black=0.10 (very precise)} 1/2-1/2

[Event "44th Chess Olympiad Women 2022"]
[Site "Chennai"]
[Date "2022.08.08"]
[Round "10.3"]
[White "Paehtz, Elisabeth"]
[Black "Muzychuk, Mariya"]
[Result "1/2-1/2"]
[ECO "E11"]
[WhiteElo "2484"]
[BlackElo "2540"]
[Annotator "TA"]
[PlyCount "96"]
[EventDate "2022.07.29"]
[EventType "team-tourn"]
[EventCountry "IND"]
[SourceTitle "playchess.com"]
[Source "ChessBase"]
[SourceQuality "1"]
[WhiteTeam "Germany"]
[BlackTeam "Ukraine"]
[WhiteTeamCountry "GER"]
[BlackTeamCountry "UKR"]
[TimeControl "40/5400+30:1800+30"]

{[%evp 16,96,0,0,4,11,10,0,12,17,24,22,27,0,0,0,0,0,0,0,0,0,0,0,0,0,0,-2,0,-9,0,-7,0,0,0,0,0,-12,-12,-12,-12,-12,-12,-13,0,-12,-12,-15,-15,-16,-16,-22,-10,-10,-10,-17,-17,-24,-10,-10,-10,-10,-4,-4,0,0,0,0,0,0,6,6,6,0,0,0,0,0,0,0,0,0,0]} 1. d4 {[%emt 0:00:01]} Nf6 {[%emt 0:00:06]} 2. c4 {[%emt 0:00:04]} e6 {[%emt 0:00:12]} 3. Nf3 {[%emt 0:00:06]} d5 {[%emt 0:00:23]} 4. g3 {[%emt 0:00:03]} Bb4+ {[%emt 0:02:31]} 5. Bd2 {[%emt 0:00:06]} Be7 {[%emt 0:00:20]} 6. Bg2 {[%emt 0:00:10]} O-O {[%emt 0:00:07]} 7. O-O {[%emt 0:00:11]} c6 {[%emt 0:00:36]} 8. Qc2 {[%emt 0:00:04]} b6 {[%emt 0:00:36]} 9. Ne5 {[%emt 0:02:16]} Bb7 {[%emt 0:00:54] E11: Bogo-Indian.} 10. cxd5 {[%emt 0:01:08]} cxd5 {[%emt 0:16:27]} 11. Rc1 {[%emt 0:00:05]} Bd6 {[%emt 0:00:55]} 12. Nc3 {[%emt 0:23:24] [#]} Nc6 $146 {[%emt 0:10:57]} ({Predecessor:} 12... Nbd7 13. Bf4 Bxe5 14. dxe5 Ng4 15. Nb5 Ngxe5 16. Qc7 Ba6 17. Nxa7 Qf6 18. Nc6 Nxc6 19. Qxc6 {0-1 (52) Li,X (2140)-Pham,C (2357) Ho Chi Minh City 2016}) 13. Nxc6 {[%emt 0:04:32]} Bxc6 {[%emt 0:00:04]} 14. Qd3 {[%emt 0:17:56]} (14. Ne4 $5 Nxe4 15. Bxe4 $14) 14... Qd7 {[%emt 0:03:33]} 15. Bg5 {[%emt 0:04:49]} Be7 {[%emt 0:01:22]} 16. a4 {[%emt 0:12:10]} h6 {[%emt 0:02:19]} 17. Bxf6 {[%emt 0:03:40]} Bxf6 {[%emt 0:00:05]} 18. Rc2 {[%emt 0:04:01]} Be7 {[%emt 0:07:36]} 19. e3 {[%emt 0:03:38]} a6 {[%emt 0:05:22]} 20. Bf1 {[%emt 0:00:11]} Rfc8 {[%emt 0:01:39]} 21. Rac1 {[%emt 0:01:36]} Bb7 {[%emt 0:00:20]} 22. b3 {[%emt 0:00:46]} Rc6 {[%emt 0:04:50]} 23. Nb1 {[%emt 0:00:32]} Rac8 {[%emt 0:00:51]} 24. Rxc6 {[%emt 0:00:24]} Rxc6 {[%emt 0:00:05]} ({Don't do} 24... Bxc6 25. Qxa6 Qb7 26. Kg2 $14) 25. Rxc6 {[%emt 0:00:07]} Qxc6 {[%emt 0:00:04]} ({But not} 25... Bxc6 26. Qxa6 Qb7 27. Nc3 $14) 26. Qc3 {[%emt 0:01:17]} Qxc3 {[%emt 0:01:48]} 27. Nxc3 $11 {[%emt 0:00:04][%mdl 4096] Endgame KBB-KBN} Bb4 {[%emt 0:04:33]} 28. Na2 {[%emt 0:00:07]} Bd6 {[%emt 0:01:20]} 29. f4 {[%emt 0:05:18]} f6 {[%emt 0:00:33]} 30. Kf2 {[%emt 0:01:30]} Kf7 {[%emt 0:00:49]} 31. Nc3 {[%emt 0:01:40]} Bb4 {[%emt 0:05:21]} 32. Na2 {[%emt 0:00:04]} Ba3 {[%emt 0:00:48]} 33. Ke1 {[%emt 0:01:22]} e5 {[%emt 0:04:59]} 34. fxe5 {[%emt 0:01:10]} fxe5 {[%emt 0:00:06]} 35. Kd2 {[%emt 0:00:18]} Bd6 {[%emt 0:03:22]} 36. Nc3 {[%emt 0:01:11]} e4 {[%emt 0:01:39]} 37. Ke2 {[%emt 0:04:58] The position is equal.} g5 {[%emt 0:01:59]} 38. Kf2 {[%emt 0:01:39]} Kf6 {[%emt 0:04:51]} 39. Na2 {[%emt 0:03:15]} Kf5 {[%emt 0:02:53]} 40. Bh3+ {[%emt 0:00:23]} g4 {[%emt 0:03:26]} 41. Bf1 {[%emt 0:30:04]} h5 {[%emt 0:30:15]} 42. b4 {[%emt 0:01:59]} h4 {[%emt 0:06:13]} 43. b5 {[%emt 0:00:11]} a5 {[%emt 0:01:53]} 44. Nc3 {[%emt 0:00:32]} Kg5 {[%emt 0:01:32]} 45. Ne2 {[%emt 0:02:56]} Bc8 {[%emt 0:00:34]} 46. Nc3 {[%emt 0:00:00]} Bb7 {[%emt 0:00:00]} 47. Ne2 {[%emt 0:00:00]} Bc8 {[%emt 0:00:00]} 48. Nc3 {[%emt 0:00:00]} Bb7 {[%emt 0:00:00] Not much happened in this game.  Weighted Error Value: White=0.02 (flawless) /Black=0.02 (flawless)} 1/2-1/2